bitfinex/quotes_ETHUSD_20241004
["timestamp","ask_amount","ask_price","bid_price","bid_amount"]
[1728074079473,4.11912,2427.7,2427.6,19.72]
[1728074080567,4.11912,2427.7,2427.4,2.17546895]
[1728074081207,4.11935,2427.6,2427.4,0.7649]
[1728074081380,4.11935,2427.6,2427.3,4.48152075]
[1728074081563,4.11935,2427.6,2427.3,1.48152075]
[1728074082103,4.11913,2427.7,2427.3,1.48152075]
[1728074082307,4.119,2427.8,2427.4,4.11961]
[1728074082510,4.91781,2428.0,2427.6,0.7748]
[1728074082708,9.03656,2428.0,2427.6,0.7748]
[1728074082911,4.91781,2428.0,2427.6,0.7748]
[1728074084131,4.11871,2428.0,2427.6,0.7748]
[1728074087686,4.11871,2428.0,2427.6,4.89409]
[1728074091639,4.11853,2428.1,2427.6,4.89409]
[1728074093442,4.11862,2428.0,2427.6,4.89409]
[1728074096616,4.11847,2428.1,2427.6,4.89409]
[1728074101545,4.11861,2428.0,2427.6,4.89409]
[1728074101945,4.87761,2428.2,2427.7,4.11911]
[1728074101946,4.11845,2428.1,2427.7,4.11911]
[1728074102605,4.11937,2427.6,2427.3,0.92732519]
[1728074102801,4.11937,2427.6,2427.3,0.0709518]
[1728074103039,4.11897,2427.8,2427.5,0.786]
[1728074104442,8.23804,2427.8,2427.5,0.786]
[1728074104801,4.11897,2427.8,2427.5,0.786]
[1728074106916,4.11897,2427.8,2427.3,0.0709518]
[1728074106917,4.11946,2427.5,2427.3,0.0709518]
[1728074107362,4.1193,2427.6,2427.3,0.0709518]
[1728074110319,4.11926,2427.7,2427.3,0.0709518]
[1728074110526,4.11897,2427.8,2427.4,1.41056895]
[1728074110756,4.90802,2427.9,2427.5,0.7633]
[1728074110927,9.02694,2427.9,2427.5,0.7633]
[1728074112256,4.90802,2427.9,2427.5,0.7633]
[1728074112858,9.02691,2427.9,2427.5,0.7633]
[1728074113059,4.11898,2427.8,2427.5,0.7633]
[1728074118475,4.90797,2427.9,2427.5,0.7633]
[1728074119072,9.02689,2427.9,2427.5,0.7633]
[1728074120376,0.7513,2428.1,2427.8,1.41056895]
[1728074120574,4.11837,2428.2,2428.0,1.41056895]
[1728074120805,4.11844,2428.1,2428.0,1.41056895]
[1728074120976,4.11844,2428.1,2427.9,0.8119]
[1728074121141,4.11861,2428.0,2427.9,0.8119]
[1728074121344,4.11861,2428.0,2427.7,0.8311]
[1728074122250,4.11844,2428.1,2427.7,0.8311]
[1728074122550,8.23698,2428.1,2427.7,0.8311]
[1728074123159,8.23698,2428.1,2427.5,0.8311]
[1728074123160,4.11888,2427.9,2427.5,0.8311]
[1728074125082,4.11888,2427.9,2427.5,4.95054]
[1728074125487,4.11888,2427.9,2427.5,5.80691339]
[1728074126187,4.11888,2427.9,2427.5,4.95054]
[1728074126393,4.11888,2427.9,2427.5,8.19180822]
[1728074126560,4.11914,2427.7,2427.4,0.85637339]
[1728074126770,4.11897,2427.8,2427.4,0.85637339]
[1728074129300,4.11897,2427.8,2427.3,5.80560519]
[1728074129599,4.11897,2427.8,2427.4,1.41056895]
[1728074129962,4.1193,2427.6,2427.4,2.26694234]
[1728074130161,4.1193,2427.6,2427.3,1.68582519]
[1728074130470,9.138735,2427.8,2427.3,0.8294518]
[1728074131492,4.11912,2427.7,2427.3,0.8294518]
[1728074131693,4.11912,2427.7,2427.3,4.9492418]
[1728074132405,4.11845,2428.1,2427.6,1.41056895]
[1728074132911,4.11845,2428.1,2427.7,4.8764]
[1728074133198,4.11813,2428.3,2427.8,5.52944895]
[1728074133362,4.11813,2428.3,2427.8,6.57002385]
[1728074133557,4.11813,2428.3,2427.9,4.87606]
[1728074134294,8.23619,2428.4,2427.9,4.87606]
[1728074134800,4.11809,2428.4,2428.0,4.11861]
[1728074135029,4.11739,2428.8,2428.2,1.41056895]
[1728074135308,4.11739,2428.8,2428.3,4.9354]
[1728074135462,0.8009,2429.0,2428.4,5.52838895]
[1728074135463,4.1171,2428.9,2428.4,5.52838895]
[1728074135666,4.91794,2429.0,2428.5,4.11768]
[1728074135667,4.11704,2429.0,2428.5,4.11768]
[1728074136203,8.23408,2429.0,2428.6,0.8197]
[1728074136405,8.2341,2429.0,2428.6,2.23026895]
[1728074137000,8.23408,2429.0,2428.6,2.23026895]
[1728074137369,4.1171,2428.9,2428.6,2.23026895]
[1728074137909,4.11704,2429.0,2428.6,2.23026895]
[1728074138466,4.11675,2429.1,2428.8,1.41056895]
[1728074138775,4.11671,2429.2,2428.9,0.7618]
[1728074139094,4.11645,2429.3,2429.0,1.41056895]
[1728074139899,4.11635,2429.4,2429.0,1.41056895]
[1728074140342,8.23268,2429.4,2429.0,1.41056895]
[1728074141636,4.11633,2429.4,2428.9,0.7618]
[1728074142324,4.11646,2429.3,2428.9,1.96659496]
[1728074142727,4.11659,2429.2,2428.9,1.96659496]
[1728074143030,8.23297,2429.3,2428.9,0.7618]
[1728074143214,0.09481956,2429.1,2428.9,0.7618]
[1728074143417,8.23297,2429.3,2428.9,0.7618]
[1728074143618,0.09480934,2429.0,2428.9,1.3118]
[1728074143835,4.11646,2429.3,2428.9,1.3118]
[1728074144038,0.09480934,2429.0,2428.9,1.3118]
[1728074144241,8.23296,2429.3,2428.9,4.238441]
[1728074144543,4.11658,2429.2,2428.9,1.3118]
[1728074144850,0.09487925,2429.1,2428.9,1.3118]
[1728074145523,0.09487925,2429.1,2428.7,23.83727]
[1728074145524,4.11717,2428.9,2428.7,20.4992]
[1728074145724,0.09481308,2428.8,2428.7,20.4992]
[1728074147011,4.11686,2429.1,2428.7,20.4992]
[1728074147421,4.21194447,2429.0,2428.7,20.4992]
[1728074147624,4.11712,2428.9,2428.7,20.4992]
[1728074148034,0.09477764,2428.8,2428.7,20.4992]
[1728074148355,4.11692,2429.0,2428.7,20.4992]
[1728074148647,0.09484757,2428.9,2428.7,0.7792]
[1728074149911,0.09484757,2428.9,2428.2,7.3]
[1728074149912,8.23505,2428.7,2428.2,4.11826]
[1728074150117,4.11777,2428.5,2428.1,0.7724]
[1728074151358,4.11777,2428.5,2428.1,1.673364]
[1728074151359,0.09447959,2428.4,2428.1,1.673364]
[1728074151557,0.09447959,2428.4,2428.1,5.791704]
[1728074151724,8.23508,2428.7,2428.2,4.11826]
[1728074151926,0.09444921,2428.6,2428.2,4.11826]
[1728074154134,4.21204921,2428.6,2428.2,4.11826]
[1728074155069,4.21204921,2428.6,2428.1,1.673364]
[1728074155306,4.11786,2428.5,2428.1,0.7724]
[1728074155647,0.0943466,2428.4,2428.1,4.89071]
[1728074156096,4.1176,2428.6,2428.1,4.89071]
[1728074156459,0.09429333,2428.5,2428.1,4.89071]
[1728074156864,0.09429333,2428.5,2427.7,19.72]
[1728074156865,4.11873,2428.0,2427.7,19.72]
[1728074157080,4.11873,2428.0,2427.4,4.11962]
[1728074157354,4.11878,2427.9,2427.4,4.11962]
[1728074157551,0.09375843,2427.8,2427.4,4.11962]
[1728074159656,0.788,2427.7,2427.3,0.0709518]
[1728074159863,0.09375843,2427.8,2427.4,4.1196]
[1728074160060,0.09356098,2427.6,2427.4,4.1196]
[1728074160359,8.23776,2427.9,2427.4,4.95062618]
[1728074160584,0.09371756,2427.8,2427.4,4.1196]
[1728074163082,0.09371756,2427.8,2427.5,4.92093]
[1728074163404,4.11855,2428.1,2427.6,3.60543785]
[1728074163610,4.11833,2428.2,2427.7,4.11902]
[1728074163812,4.93666,2428.3,2427.7,4.97161579]
[1728074163972,4.93666,2428.3,2427.9,4.11877]
[1728074164175,4.11816,2428.3,2427.9,4.92037]
[1728074165096,4.11816,2428.3,2427.9,0.8016]
[1728074165268,4.11828,2428.2,2427.9,0.8016]
[1728074169412,4.11886,2427.9,2427.6,0.7505]
[1728074170237,4.11895,2427.8,2427.6,0.7505]
[1728074170540,4.11886,2427.9,2427.3,5.0018418]
[1728074171453,4.11903,2427.8,2427.3,5.0018418]
[1728074171639,4.11903,2427.8,2427.4,3.18961344]
[1728074173513,4.11886,2427.9,2427.4,7.30922344]
[1728074173850,4.11886,2427.9,2427.4,11.42876344]
[1728074174046,4.11856,2428.1,2427.4,11.42876344]
[1728074174047,4.11856,2428.1,2427.6,0.8299]
[1728074174247,4.11856,2428.1,2427.7,4.11909]
[1728074174413,0.09037733,2428.0,2427.7,4.11909]
[1728074174602,0.09037733,2428.0,2427.7,5.025909]
[1728074174934,0.09037733,2428.0,2427.9,4.11878]
[1728074175343,0.08725696,2428.0,2427.9,4.11878]
[1728074175555,0.08725696,2428.0,2427.8,4.11893]
[1728074175854,4.11821,2428.3,2427.8,4.11893]
[1728074176063,0.08718697,2427.9,2427.8,4.11895]
[1728074176214,4.11821,2428.3,2427.8,5.42187216]
[1728074176625,0.08747149,2428.2,2427.8,5.42187216]
[1728074177114,0.08740152,2428.1,2427.8,5.42187216]
[1728074177456,8.23646,2428.3,2427.8,5.42187216]
[1728074177656,4.11821,2428.3,2427.8,5.42187216]
[1728074178201,0.08747149,2428.2,2427.8,5.42187216]
[1728074178383,8.23639,2428.3,2427.8,5.42187216]
[1728074178695,0.08740152,2428.1,2427.8,5.42187216]
[1728074178898,0.08747149,2428.2,2427.9,1.04477812]
[1728074179051,8.23641,2428.3,2427.9,1.04477812]
[1728074179396,8.23642,2428.3,2427.8,5.42187216]
[1728074179600,0.08747149,2428.2,2427.8,5.42187216]
[1728074179966,4.11818,2428.3,2427.8,5.42187216]
[1728074180169,0.08749014,2428.2,2427.8,5.42187216]
[1728074180384,4.11818,2428.3,2427.8,5.42187216]
[1728074180699,0.08747149,2428.2,2427.8,5.42187216]
[1728074180899,0.08747149,2428.2,2427.9,1.04477812]
[1728074181050,8.23642,2428.3,2427.9,1.04477812]
[1728074181251,0.08740152,2428.1,2427.9,1.04477812]
[1728074181465,8.23642,2428.3,2427.9,1.04477812]
[1728074181668,0.08733155,2428.0,2427.8,5.42187216]
[1728074181863,8.23642,2428.3,2427.8,5.42187216]
[1728074182069,0.08726156,2427.9,2427.8,5.42187216]
[1728074182370,8.23642,2428.3,2427.9,4.11878]
[1728074182371,4.11818,2428.3,2427.9,4.11878]
[1728074182570,0.08731088,2428.2,2428.0,0.8206]
[1728074182802,4.9455,2428.5,2428.0,0.8206]
[1728074183005,0.08744257,2428.1,2428.0,0.8206]
[1728074183315,4.11812,2428.3,2428.0,1.44483022]
[1728074183509,4.11812,2428.3,2428.0,0.8206]
[1728074183715,4.20582118,2428.2,2428.0,0.8206]
[1728074184307,0.08753118,2428.2,2428.0,0.8206]
[1728074184702,4.11812,2428.3,2428.0,0.8206]
[1728074184899,0.08746121,2428.1,2428.0,0.8206]
[1728074185105,4.11828,2428.2,2428.0,0.8206]
[1728074185419,0.08746121,2428.1,2428.0,0.8206]
[1728074186013,4.11812,2428.3,2428.0,0.8206]
[1728074186374,0.08753118,2428.2,2428.0,0.8206]
[1728074186715,4.11812,2428.3,2428.0,0.8206]
[1728074186915,0.08446398,2428.1,2428.0,0.8206]
[1728074187422,4.11812,2428.3,2428.0,0.8206]
[1728074187580,0.08446398,2428.1,2428.0,0.8206]
[1728074187782,4.11812,2428.3,2428.0,0.8206]
[1728074188001,4.20293705,2428.2,2428.0,0.8206]
[1728074188511,0.08457705,2428.2,2428.0,0.8206]
[1728074188873,4.11812,2428.3,2428.0,0.8206]
[1728074189078,0.08450708,2428.1,2428.0,0.8206]
[1728074189274,4.11836,2428.2,2428.0,0.8206]
[1728074189478,0.08450708,2428.1,2428.0,0.8206]
[1728074190083,4.11812,2428.3,2428.0,0.8206]
[1728074190277,0.08450708,2428.1,2428.0,0.8206]
[1728074190617,8.23635,2428.3,2428.0,0.8206]
[1728074190833,0.08450708,2428.1,2428.0,0.8206]
[1728074191123,4.11812,2428.3,2428.0,0.8206]
[1728074191298,0.08450708,2428.1,2428.0,0.8206]
[1728074191632,0.08450708,2428.1,2428.0,1.45551232]
[1728074191823,4.11801,2428.4,2428.0,1.45551232]
[1728074192134,4.91884,2428.7,2428.2,5.52792317]
[1728074192634,4.1176,2428.6,2428.4,1.40967317]
[1728074192986,0.08470852,2428.5,2428.4,1.40967317]
[1728074193214,0.08470852,2428.5,2428.2,1.40967317]
[1728074193419,4.1176,2428.6,2428.2,1.40967317]
[1728074193600,4.1176,2428.6,2428.2,2.54242099]
[1728074195415,4.76322305,2428.6,2428.2,2.54242099]
[1728074195616,0.64562305,2428.6,2428.4,2.18577317]
[1728074195923,0.64562305,2428.6,2428.4,6.30370317]
[1728074195924,0.08469021,2428.5,2428.4,6.30370317]
[1728074196128,0.08469021,2428.5,2428.4,7.38541647]
[1728074196333,0.64562305,2428.6,2428.4,11.50326647]
[1728074196905,0.64562305,2428.6,2428.4,7.38533647]
[1728074198909,0.64562305,2428.6,2428.4,11.50318647]
[1728074199104,0.64562305,2428.6,2428.5,3.12231865]
[1728074199555,0.64562305,2428.6,2428.5,8.62007865]
[1728074199734,4.90025,2429.4,2428.9,4.94692]
[1728074199735,4.90014,2429.4,2428.9,4.94692]
[1728074199909,1.42943441,2429.4,2429.0,5.52642317]
[1728074200110,0.08533576,2429.3,2429.0,5.52642317]
[1728074200315,0.64553441,2429.4,2429.0,5.52642317]
[1728074200513,0.0822779,2429.2,2429.0,5.52642317]
[1728074200760,0.64553441,2429.4,2429.0,10.69706997]
[1728074200964,0.64553441,2429.4,2429.0,6.58025997]
[1728074201257,0.64553441,2429.4,2429.0,10.69706997]
[1728074201258,0.08274153,2429.3,2429.0,10.69706997]
[1728074201572,0.08274153,2429.3,2429.2,7.9445928]
[1728074201861,0.64553441,2429.4,2429.3,4.66641]
[1728074202156,0.64553441,2429.4,2429.3,5.92751028]
[1728074202355,0.72824216,2429.4,2429.3,25.64751028]
[1728074202957,0.64553441,2429.4,2429.3,25.64751028]
[1728074203532,0.72844613,2429.4,2429.3,25.64751028]
[1728074204751,0.08291172,2429.4,2429.3,25.64751028]
[1728074205137,0.6453706,2429.7,2429.3,25.64751028]
[1728074205806,0.08322184,2429.6,2429.3,25.64751028]
[1728074206089,0.08322184,2429.6,2429.4,3.05415903]
[1728074206579,0.6453706,2429.7,2429.4,3.05415903]
[1728074207285,0.08322184,2429.6,2429.4,3.05415903]
[1728074207493,0.6453706,2429.7,2429.4,3.05415903]
[1728074207672,0.08315195,2429.5,2429.4,3.05415903]
[1728074207871,0.6453706,2429.7,2429.4,3.05415903]
[1728074208060,0.6453706,2429.7,2429.5,2.87016693]
[1728074209679,0.6453706,2429.7,2429.5,6.98619693]
[1728074209984,0.6453706,2429.7,2429.5,7.79669693]
[1728074210544,0.6453706,2429.7,2429.5,3.68066693]
[1728074213388,0.6453706,2429.7,2429.5,7.79673693]
[1728074213683,0.6453706,2429.7,2429.6,1.19128569]
[1728074218080,0.72741344,2429.7,2429.6,1.19128569]
[1728074218392,0.6453706,2429.7,2429.6,1.19128569]
[1728074220262,0.6453706,2429.7,2429.6,5.30718569]
[1728074221084,0.72748723,2429.7,2429.6,5.30718569]
[1728074222263,0.72740541,2429.7,2429.6,5.30718569]
[1728074224308,0.6453706,2429.7,2429.6,5.30718569]
[1728074224480,0.72740541,2429.7,2429.6,5.30718569]
[1728074225706,0.6453706,2429.7,2429.6,5.30718569]
[1728074225869,0.72742181,2429.7,2429.6,5.30718569]
[1728074226406,0.08205121,2429.7,2429.6,5.30718569]
[1728074226823,0.64533254,2430.0,2429.8,4.11547]
[1728074226972,0.64533254,2430.0,2429.8,5.05770457]
[1728074227319,0.0822299,2429.9,2429.8,6.46541197]
[1728074228419,0.0822299,2429.9,2429.8,2.34994197]
[1728074228619,0.0822299,2429.9,2429.8,0.94223457]
[1728074231524,0.0822299,2429.9,2429.8,5.05779457]
[1728074246241,0.0822299,2429.9,2429.8,4.11556]
[1728074247764,0.64533254,2430.0,2429.8,4.11556]
[1728074248079,0.0774107,2429.9,2429.8,4.11556]
[1728074249221,0.64533254,2430.0,2429.8,4.11556]
[1728074249347,0.0774107,2429.9,2429.8,4.11556]
[1728074250283,0.64533254,2430.0,2429.8,4.11556]
[1728074250645,0.0774107,2429.9,2429.8,4.11556]
[1728074250854,0.64533254,2430.0,2429.8,4.11556]
[1728074251058,0.0774107,2429.9,2429.8,4.11556]
[1728074251681,0.64533254,2430.0,2429.8,4.11556]
[1728074251893,0.0770848,2429.9,2429.8,4.11556]
[1728074252992,0.0770848,2429.9,2429.8,7.25662881]
[1728074253482,0.64533254,2430.0,2429.8,7.25662881]
[1728074253682,0.0770848,2429.9,2429.8,7.25662881]
[1728074254055,0.64533254,2430.0,2429.8,7.25662881]
[1728074254257,0.07708687,2429.9,2429.8,4.11556]
[1728074254459,0.64533254,2430.0,2429.8,4.11556]
[1728074254659,0.07708687,2429.9,2429.8,4.11556]
[1728074254882,0.64533254,2430.0,2429.8,4.11556]
[1728074255391,0.64533254,2430.0,2429.9,4.11539]
[1728074260854,0.64533254,2430.0,2429.9,5.02493807]
[1728074262293,0.64533254,2430.0,2429.9,4.11539]
[1728074263203,0.71560567,2430.0,2429.9,4.11539]
[1728074288606,0.71560567,2430.0,2429.9,5.77452065]
[1728074288809,0.71560567,2430.0,2429.9,4.90999]
[1728074289127,0.71560567,2430.0,2429.9,5.77452065]
[1728074289308,0.64533254,2430.0,2429.9,28.89963974]
[1728074289506,0.7524,2430.6,2430.3,4.11462]
[1728074289706,0.7524,2430.6,2430.3,6.3145274]
[1728074289914,0.065471,2430.5,2430.3,6.3145274]
[1728074290212,4.75921327,2430.7,2430.3,7.1795513]
[1728074290410,0.06545853,2430.4,2430.3,10.27199505]
[1728074290647,0.64514327,2430.7,2430.5,4.11437]
[1728074290847,0.64514327,2430.7,2430.6,1.4077074]
[1728074291614,0.64514327,2430.7,2430.4,5.5222174]
[1728074293214,0.06565556,2430.6,2430.4,5.5222174]
[1728074293549,0.64514327,2430.7,2430.4,4.27787433]
[1728074293910,0.06565556,2430.6,2430.4,4.27787433]
[1728074294108,0.06565556,2430.6,2430.4,1.4077074]
[1728074296849,0.06565556,2430.6,2430.4,5.5222474]
[1728074302054,0.06565556,2430.6,2430.4,1.4077074]
[1728074305363,0.06565556,2430.6,2430.4,5.5222474]
[1728074311579,0.06565556,2430.6,2430.4,9.6367174]
[1728074312996,0.06565556,2430.6,2430.4,5.5221774]
[1728074313646,0.06565556,2430.6,2430.4,9.6366474]
[1728074315890,0.06565556,2430.6,2430.4,4.11447]
[1728074316090,0.06565556,2430.6,2430.4,8.22893]
[1728074316291,1.47344327,2430.7,2430.4,4.11446]
[1728074316451,0.06561194,2430.5,2430.4,4.11446]
[1728074316652,1.47344327,2430.7,2430.4,4.11446]
[1728074316887,0.64514327,2430.7,2430.4,5.5221674]
[1728074317101,0.64514327,2430.7,2430.6,4.11421]
[1728074317654,0.64514327,2430.7,2430.6,5.5219174]
[1728074318581,0.80404,2431.0,2430.7,4.11396]
[1728074318781,0.80404,2431.0,2430.8,1.4077074]
[1728074319306,0.64501821,2431.1,2430.8,5.5215574]
[1728074319592,0.64501821,2431.1,2431.0,1.4077074]
[1728074323168,0.71040891,2431.1,2431.0,1.4077074]
[1728074324115,0.64501821,2431.1,2431.0,1.4077074]
[1728074326972,0.64501821,2431.1,2431.0,5.5212374]
[1728074327389,0.64501821,2431.1,2431.0,6.2796374]
[1728074327592,0.64501821,2431.1,2431.0,9.35386271]
[1728074327908,0.8005,2431.6,2431.2,4.11305]
[1728074328146,0.64481297,2431.7,2431.4,5.5205474]
[1728074328311,0.0633813,2431.5,2431.4,4.11284]
[1728074328511,0.64481297,2431.7,2431.6,4.92431]
[1728074328831,0.64481297,2431.7,2431.6,6.41310022]
[1728074328976,0.64481297,2431.7,2431.6,6.3320174]
[1728074329715,0.8025,2432.4,2431.9,4.11191]
[1728074329918,0.8025,2432.4,2432.1,1.4077074]
[1728074329919,0.05948516,2432.3,2432.1,1.4077074]
[1728074330222,0.05948516,2432.3,2432.1,2.3730223]
[1728074330438,0.05948516,2432.3,2432.1,7.2665823]
[1728074330722,0.05950748,2432.2,2432.1,7.2665823]
[1728074330878,4.11083,2432.6,2432.1,3.1550223]
[1728074331073,4.1707667,2432.5,2432.1,1.7473149]
[1728074332615,4.1707667,2432.5,2432.2,0.72668523]
[1728074334127,8.2819067,2432.5,2432.2,0.72668523]
[1728074334325,4.11117,2432.4,2432.1,1.7473149]
[1728074334619,0.05919723,2432.3,2432.1,1.7473149]
[1728074335131,4.17053723,2432.3,2432.1,1.7473149]
[1728074335295,4.11196,2432.0,2431.8,19.72]
[1728074335497,0.05923067,2431.9,2431.6,0.7562]
[1728074335797,4.95736067,2431.9,2431.5,21.1277074]
[1728074336282,4.11227,2431.8,2431.5,21.1277074]
[1728074336480,0.05916889,2431.7,2431.5,1.4077074]
[1728074336681,4.11227,2431.8,2431.5,4.02161144]
[1728074336915,0.05911979,2431.7,2431.5,4.02161144]
[1728074337117,4.11227,2431.8,2431.5,4.02161144]
[1728074337286,0.05911979,2431.7,2431.5,4.02161144]
[1728074337501,4.11227,2431.8,2431.5,4.02161144]
[1728074337702,0.7861,2431.9,2431.5,4.02161144]
[1728074338097,0.05918955,2431.8,2431.5,4.02161144]
[1728074338322,4.17136955,2431.8,2431.5,4.02161144]
[1728074338525,4.17136955,2431.8,2431.4,20.618423]
[1728074338938,4.17136955,2431.8,2431.4,24.731273]
[1728074339234,0.05918955,2431.8,2431.4,24.731273]
[1728074339525,4.17136955,2431.8,2431.5,1.4077074]
[1728074339682,8.28363955,2431.8,2431.4,19.72]
[1728074339886,8.28362955,2431.8,2431.4,19.72]
[1728074340187,4.17136955,2431.8,2431.4,19.72]
[1728074341404,4.17136955,2431.8,2431.4,23.83285]
[1728074341606,4.17136955,2431.8,2431.4,19.72]
[1728074342088,0.8271,2431.7,2431.4,19.72]
[1728074342585,0.05899685,2431.6,2431.4,19.72]
[1728074347352,0.05899685,2431.6,2431.4,1.4077074]
[1728074349810,4.11269,2431.5,2431.4,19.72]
[1728074350258,4.96527643,2431.5,2431.4,19.72]
[1728074350952,0.85258643,2431.5,2431.4,19.72]
[1728074351541,4.96526643,2431.5,2431.4,19.72]
[1728074351947,0.85258643,2431.5,2431.4,19.72]
[1728074352955,4.11288,2431.4,2431.2,19.72]
[1728074353121,0.81560185,2431.3,2431.0,19.72]
[1728074353331,4.11322,2431.2,2431.0,19.72]
[1728074353647,0.05866226,2431.1,2431.0,19.72]
[1728074354865,0.05866226,2431.1,2430.9,19.72]
[1728074354866,4.87033,2431.0,2430.9,19.72]
[1728074355223,0.81531879,2431.0,2430.6,25.2418374]
[1728074355432,0.05851879,2431.0,2430.7,23.83402]
[1728074355738,9.042,2431.2,2430.7,23.83402]
[1728074356049,0.05849737,2431.1,2430.7,23.83402]
[1728074356254,4.17189737,2431.1,2430.7,23.83402]
[1728074358848,0.05849737,2431.1,2430.9,4.11369]
[1728074359158,0.05849737,2431.1,2431.0,6.07337714]
[1728074359489,0.7618,2431.4,2431.0,6.07337714]
[1728074359688,0.05760989,2431.1,2431.0,6.07337714]
[1728074359860,0.7618,2431.4,2431.0,6.07337714]
[1728074360368,0.05774948,2431.3,2431.0,6.07337714]
[1728074360544,4.11271,2431.5,2431.1,1.09844671]
[1728074360880,0.05781926,2431.4,2431.1,1.09844671]
[1728074361445,4.88434,2431.3,2431.1,1.09844671]
[1728074361640,4.88434,2431.3,2431.0,0.55213974]
[1728074361840,0.05763894,2431.2,2431.0,0.55213974]
[1728074362251,4.88434,2431.3,2431.0,0.55213974]
[1728074362462,0.0575419,2431.1,2431.0,0.55213974]
[1728074362679,0.7713,2431.3,2431.0,0.55213974]
[1728074363085,0.0576117,2431.2,2431.0,0.55213974]
[1728074363460,0.7713,2431.3,2431.0,0.55213974]
[1728074363664,0.05756914,2431.1,2431.0,0.55213974]
[1728074363868,0.7713,2431.3,2431.0,0.55213974]
[1728074364196,0.7713,2431.3,2430.9,1.4077074]
[1728074364197,0.05763894,2431.2,2430.9,1.4077074]
[1728074364551,8.99747,2431.3,2430.9,1.4077074]
[1728074364892,0.05766555,2431.2,2430.9,1.4077074]
[1728074365190,4.88433,2431.3,2430.9,1.4077074]
[1728074365397,0.05766555,2431.2,2430.9,1.4077074]
[1728074365567,4.88433,2431.3,2430.9,5.5213174]
[1728074365958,0.05766555,2431.2,2431.1,2.2078074]
[1728074366161,0.7646,2431.5,2431.1,6.3210674]
[1728074366359,0.05766282,2431.4,2431.1,6.3210674]
[1728074367071,0.05766282,2431.4,2431.1,2.2078074]
[1728074368196,4.8773,2431.5,2431.1,2.2078074]
[1728074368394,0.05763559,2431.4,2431.1,3.14130221]
[1728074369372,4.17051559,2431.4,2431.1,3.14130221]
[1728074371976,0.05763559,2431.4,2431.1,3.14130221]
[1728074374515,0.05763559,2431.4,2431.3,1.4077074]
[1728074374879,4.11248,2431.7,2431.3,1.4077074]
[1728074375077,0.05773295,2431.4,2431.3,1.4077074]
[1728074375273,4.11248,2431.7,2431.3,2.13314762]
[1728074375520,0.05773295,2431.4,2431.3,2.13314762]
[1728074375824,8.22553,2431.5,2431.3,2.13314762]
[1728074376117,0.05773295,2431.4,2431.1,3.14130221]
[1728074378290,0.05773295,2431.4,2431.1,7.25463221]
[1728074379222,0.05773295,2431.4,2431.1,3.14130221]
[1728074379998,4.11319,2431.2,2430.9,19.72]
[1728074380203,4.17118105,2431.1,2430.9,19.72]
[1728074380728,4.11353,2431.0,2430.7,1.4077074]
[1728074380941,4.17108105,2431.1,2430.7,1.4077074]
[1728074381148,4.11336,2431.1,2430.7,1.4077074]
[1728074382848,4.11362,2431.0,2430.7,1.4077074]
[1728074383002,0.7892,2430.9,2430.7,1.4077074]
[1728074383202,0.05752389,2430.8,2430.7,1.4077074]
[1728074384985,0.05752389,2430.8,2430.7,6.2749474]
[1728074385270,4.90411,2431.2,2430.8,4.11386]
[1728074385574,0.05766168,2431.1,2430.9,1.4077074]
[1728074390280,0.70257269,2431.1,2430.9,1.4077074]
[1728074390486,0.70257269,2431.1,2430.9,6.56026914]
[1728074390988,0.70257269,2431.1,2431.0,0.7532]
[1728074391151,0.70257269,2431.1,2431.0,4.86673]
[1728074391152,0.05766168,2431.1,2431.0,4.86673]
[1728074391485,8.22523,2431.6,2431.1,4.11325]
[1728074391486,4.1126,2431.6,2431.1,4.11325]
[1728074391637,4.1126,2431.6,2431.3,1.4077074]
[1728074393178,5.52261845,2431.7,2431.3,1.4077074]
[1728074393567,5.52261845,2431.7,2431.4,0.7863]
[1728074394151,4.11259,2431.6,2431.4,0.7863]
[1728074394469,9.63506845,2431.7,2431.4,0.7863]
[1728074395279,4.11253,2431.6,2431.4,0.7863]
[1728074397980,4.75721845,2431.7,2431.4,1.42250359]
[1728074398178,0.05800191,2431.6,2431.5,5.5202674]
[1728074398699,4.75670637,2431.9,2431.5,5.5202674]
[1728074398867,4.75670637,2431.9,2431.7,1.4077074]
[1728074399062,4.91145,2432.1,2431.7,1.4077074]
[1728074399063,4.11185,2432.0,2431.7,1.4077074]
[1728074400374,4.1121,2431.9,2431.5,21.1277074]
[1728074400584,0.819,2431.8,2431.5,22.73398374]
[1728074400787,4.93133,2431.8,2431.5,22.73398374]
[1728074400981,4.11245,2431.7,2431.5,19.72]
[1728074401188,4.91161,2431.6,2431.5,19.72]
[1728074403181,4.836522,2431.6,2431.5,19.72]
[1728074403417,0.7991,2431.6,2431.5,19.72]
[1728074403617,0.7991,2431.6,2431.4,4.11284]
[1728074403819,0.7991,2431.6,2431.3,4.11297]
[1728074404022,0.7991,2431.6,2431.3,5.45612936]
[1728074407117,4.11196,2432.0,2431.6,4.11249]
[1728074407118,0.8285,2431.9,2431.6,4.11249]
[1728074407324,0.8285,2431.9,2431.5,4.11257]
[1728074407524,0.8285,2431.9,2431.5,8.22517]
[1728074407724,0.8285,2431.9,2431.5,9.56427246]
[1728074408156,0.8285,2431.9,2431.5,5.45167246]
[1728074408464,0.8285,2431.9,2431.6,4.11242]
[1728074408625,0.767,2432.1,2431.7,4.11226]
[1728074408826,0.767,2432.1,2431.8,4.11216]
[1728074409029,0.767,2432.1,2431.8,5.23915752]
[1728074410362,0.767,2432.1,2431.8,1.12699752]
[1728074411543,4.92734,2432.3,2431.9,4.11199]
[1728074411743,0.816,2432.3,2431.9,4.11199]
[1728074411953,0.816,2432.3,2431.9,5.02224828]
[1728074412126,0.816,2432.3,2431.9,5.02217828]
[1728074412328,0.816,2432.3,2431.9,9.13410828]
[1728074412620,4.92733,2432.3,2431.9,5.02217828]
[1728074412830,0.816,2432.3,2431.9,9.13409828]
[1728074413030,0.05609192,2432.2,2432.0,1.21794935]
[1728074413257,0.816,2432.3,2432.0,1.21794935]
[1728074413559,4.11151,2432.2,2432.0,1.21794935]
[1728074413759,4.11151,2432.2,2431.9,0.91025828]
[1728074413970,0.0558316,2432.1,2431.9,0.91025828]
[1728074414626,0.70047257,2432.1,2431.9,0.91025828]
[1728074420034,0.70047257,2432.1,2431.6,19.72]